bitfinex/quotes_BTCUSD_20250316
["timestamp","ask_amount","ask_price","bid_price","bid_amount"]
[1742162203324,0.192964,82917.0,82916.0,0.0001693]
[1742162203519,0.192964,82917.0,82916.0,1.5001693]
[1742162203825,0.012059,82919.0,82916.0,1.6931333]
[1742162203826,0.205018,82919.0,82916.0,1.6931333]
[1742162203987,0.192961,82919.0,82916.0,1.6931333]
[1742162204186,0.19296,82919.0,82916.0,1.6931333]
[1742162204586,0.192962,82918.0,82916.0,1.5001693]
[1742162204783,0.0123976,82922.0,82916.0,1.6931343]
[1742162204985,0.192959,82919.0,82916.0,1.6931343]
[1742162205191,0.192959,82919.0,82917.0,0.192963]
[1742162205770,0.0003386,82922.0,82919.0,0.192957]
[1742162205979,0.01890182,82919.0,82917.0,0.01206]
[1742162206183,0.01890182,82919.0,82918.0,0.19296]
[1742162208108,0.02354754,82919.0,82918.0,0.19296]
[1742162210095,0.02354754,82919.0,82917.0,0.192962]
[1742162210301,0.02354754,82919.0,82918.0,0.192961]
[1742162210685,0.00464572,82919.0,82918.0,0.192961]
[1742162210886,0.205015,82921.0,82918.0,0.192961]
[1742162211102,0.00464572,82920.0,82918.0,0.192959]
[1742162211942,0.19794132,82920.0,82918.0,0.192961]
[1742162212166,0.00498432,82920.0,82918.0,0.192961]
[1742162212385,0.19794132,82920.0,82918.0,0.192961]
[1742162212594,0.00498432,82920.0,82919.0,0.192959]
[1742162212735,0.19894132,82920.0,82917.0,0.192963]
[1742162212936,0.192959,82919.0,82917.0,0.192963]
[1742162213137,0.192959,82919.0,82916.0,0.2051943]
[1742162213336,0.192959,82919.0,82917.0,0.192963]
[1742162213534,0.192959,82919.0,82916.0,0.0001693]
[1742162213535,0.19760672,82918.0,82916.0,0.0001693]
[1742162213790,0.00464572,82918.0,82916.0,0.0001693]
[1742162214003,0.205024,82917.0,82916.0,0.0001693]
[1742162214354,0.01890217,82919.0,82916.0,0.0001693]
[1742162214567,0.00464572,82917.0,82916.0,0.0001693]
[1742162214747,0.01890217,82919.0,82916.0,0.0001693]
[1742162214948,0.00464572,82917.0,82916.0,0.0001693]
[1742162215210,0.192963,82918.0,82916.0,0.0001693]
[1742162215406,0.00464572,82917.0,82916.0,0.0001693]
[1742162215834,0.00464572,82917.0,82916.0,0.1941353]
[1742162216059,0.01670572,82917.0,82916.0,0.0011693]
[1742162216274,0.21117742,82917.0,82916.0,0.0011693]
[1742162217203,0.51117742,82917.0,82916.0,0.0011693]
[1742162217399,0.64506972,82917.0,82916.0,0.0011693]
[1742162217948,0.6639747,82917.0,82916.0,0.0001693]
[1742162218971,0.6659747,82917.0,82916.0,0.0001693]
[1742162219306,0.64706972,82917.0,82916.0,0.0001693]
[1742162219696,0.65812364,82917.0,82916.0,0.0001693]
[1742162220314,0.82862828,82917.0,82916.0,0.0001693]
[1742162222474,0.84753311,82917.0,82916.0,0.0001693]
[1742162223487,0.82862828,82917.0,82916.0,0.0001693]
[1742162225796,0.69322828,82917.0,82916.0,0.0001693]
[1742162226029,0.82862828,82917.0,82916.0,0.0001693]
[1742162227735,0.68417436,82917.0,82916.0,0.0001693]
[1742162227935,0.83847878,82917.0,82916.0,0.0001693]
[1742162228139,0.70307878,82917.0,82916.0,0.0001693]
[1742162229215,0.68417436,82917.0,82916.0,0.0001693]
[1742162230058,0.38417436,82917.0,82916.0,0.0001693]
[1742162235937,0.38217436,82917.0,82916.0,0.0001693]
[1742162236412,0.40107808,82917.0,82916.0,0.0001693]
[1742162236577,0.40307808,82917.0,82916.0,0.0001693]
[1742162237411,0.19805408,82917.0,82916.0,0.0001693]
[1742162237718,0.37211436,82917.0,82916.0,0.0001693]
[1742162238281,0.38417436,82917.0,82916.0,0.0001693]
[1742162238690,0.37211436,82917.0,82916.0,0.0001693]
[1742162238917,0.38417436,82917.0,82916.0,0.0001693]
[1742162239826,0.37211436,82917.0,82916.0,0.0001693]
[1742162240703,0.17915036,82917.0,82916.0,0.0001693]
[1742162240992,0.37011436,82917.0,82916.0,0.0001693]
[1742162241205,0.36811436,82917.0,82916.0,0.0001693]
[1742162241408,0.37111436,82917.0,82916.0,0.0001693]
[1742162242421,0.39001732,82917.0,82916.0,0.0001693]
[1742162244562,0.19705332,82917.0,82916.0,0.1931353]
[1742162245378,0.39001732,82917.0,82916.0,0.0001693]
[1742162245699,0.19705332,82917.0,82916.0,0.0001693]
[1742162247810,0.19705332,82917.0,82916.0,0.1931353]
[1742162249752,0.19705332,82917.0,82916.0,0.2051953]
[1742162250189,0.19705332,82917.0,82916.0,1.7051953]
[1742162250504,0.1924076,82917.0,82916.0,1.7051953]
[1742162250716,0.1904076,82917.0,82916.0,0.2051953]
[1742162251173,0.19503235,82917.0,82916.0,0.2051953]
[1742162251633,0.1904076,82917.0,82916.0,0.2051953]
[1742162251763,0.1894076,82917.0,82916.0,0.2051953]
[1742162252323,0.01890296,82917.0,82916.0,0.2877953]
[1742162252533,0.0003386,82920.0,82919.0,0.287618]
[1742162252923,0.0003386,82920.0,82919.0,1.787618]
[1742162253538,0.0003386,82920.0,82919.0,1.80001757]
[1742162253751,0.0003386,82920.0,82919.0,1.787618]
[1742162254568,0.0023386,82920.0,82919.0,1.787618]
[1742162255122,0.0013386,82920.0,82919.0,1.787618]
[1742162255739,0.0013386,82920.0,82919.0,1.79942414]
[1742162256312,0.0003386,82920.0,82919.0,1.787618]
[1742162261171,0.0003386,82920.0,82919.0,1.788618]
[1742162270359,0.0003386,82920.0,82919.0,1.7887871]
[1742162291315,0.0003386,82920.0,82919.0,1.7061871]
[1742162291597,0.3331546,82920.0,82919.0,0.0011691]
[1742162291792,0.35205602,82920.0,82919.0,0.0011691]
[1742162291947,0.35671391,82920.0,82919.0,0.0011691]
[1742162292875,0.33781249,82920.0,82919.0,0.0011691]
[1742162293387,0.33781249,82920.0,82919.0,0.0001691]
[1742162294463,0.33781249,82920.0,82919.0,0.0011691]
[1742162296648,0.50831713,82920.0,82919.0,0.0011691]
[1742162297138,0.52721958,82920.0,82919.0,0.0011691]
[1742162300008,0.50831713,82920.0,82919.0,0.0011691]
[1742162302695,0.50831713,82920.0,82919.0,0.0001691]
[1742162303405,0.5272199,82920.0,82919.0,0.0001691]
[1742162303936,0.5282199,82920.0,82919.0,0.0001691]
[1742162310390,0.8282199,82920.0,82919.0,0.0001691]
[1742162316832,0.94459713,82920.0,82919.0,0.0001691]
[1742162317754,0.94659713,82920.0,82919.0,0.0001691]
[1742162317978,0.96913798,82920.0,82919.0,0.0001691]
[1742162318166,0.60566485,82917.0,82916.0,0.0001693]
[1742162318549,0.61028513,82917.0,82916.0,0.0001693]
[1742162318750,0.74556513,82917.0,82916.0,0.0001693]
[1742162319702,0.79516513,82917.0,82916.0,0.0001693]
[1742162319904,0.80016513,82917.0,82916.0,0.0001693]
[1742162320193,0.81507161,82917.0,82916.0,0.0001693]
[1742162320612,0.82007161,82917.0,82916.0,0.0001693]
[1742162321192,0.80116513,82917.0,82916.0,0.0001693]
[1742162321339,0.80120513,82917.0,82916.0,0.0001693]
[1742162322614,0.69004036,82917.0,82916.0,3e-07]
[1742162323134,0.94493539,82917.0,82916.0,3e-07]
[1742162323334,0.505058,82903.0,82902.0,0.00029326]
[1742162323540,0.51959885,82903.0,82902.0,0.00029326]
[1742162323743,0.65951657,82903.0,82902.0,0.00029326]
[1742162324319,0.5431053,82903.0,82902.0,0.00029326]
[1742162324532,0.6814253,82903.0,82902.0,0.00029326]
[1742162325913,0.6834253,82903.0,82902.0,0.00029326]
[1742162326773,0.5481053,82903.0,82902.0,0.00029326]
[1742162326988,0.70724101,82903.0,82902.0,0.00029326]
[1742162327602,0.55301228,82903.0,82902.0,0.00029326]
[1742162327794,0.68833228,82903.0,82902.0,0.00029326]
[1742162328800,0.85866752,82903.0,82902.0,0.00029326]
[1742162329356,0.86781517,82903.0,82902.0,0.00029326]
[1742162329964,0.73249517,82903.0,82902.0,0.00029326]
[1742162330166,0.86781517,82903.0,82902.0,0.00029326]
[1742162331078,0.88672384,82903.0,82902.0,0.00029326]
[1742162332032,0.86781517,82903.0,82902.0,0.00029326]
[1742162334159,0.71795432,82903.0,82902.0,0.00029326]
[1742162334568,0.68499096,82903.0,82902.0,0.00029326]
[1742162334702,0.68499096,82903.0,82902.0,0.08219326]
[1742162335839,0.67999096,82903.0,82902.0,0.08219326]
[1742162336082,0.68199096,82903.0,82902.0,0.08219326]
[1742162336283,0.70289794,82903.0,82902.0,0.08219326]
[1742162339787,0.68399096,82903.0,82902.0,0.08219326]
[1742162341175,0.68399096,82903.0,82902.0,0.00029326]
[1742162343118,0.70089812,82903.0,82902.0,0.00029326]
[1742162343630,0.70189812,82903.0,82902.0,0.00029326]
[1742162344263,0.68099096,82903.0,82902.0,0.00029326]
[1742162344464,0.68099096,82903.0,82902.0,0.23919126]
[1742162344465,0.47593296,82903.0,82902.0,0.23919126]
[1742162344681,0.36892896,82903.0,82902.0,0.04619326]
[1742162344878,0.17593296,82903.0,82902.0,0.04619326]
[1742162345041,0.17493296,82903.0,82902.0,0.23919126]
[1742162345253,0.00459772,82903.0,82902.0,0.33005326]
[1742162345480,0.001,82903.0,82902.0,0.33005326]
[1742162345675,0.003,82903.0,82902.0,1.83005326]
[1742162345876,0.205032,82914.0,82910.0,0.0788]
[1742162346076,0.192977,82913.0,82910.0,0.0788]
[1742162346342,0.00535581,82913.0,82910.0,0.27078]
[1742162346499,0.19832881,82913.0,82910.0,0.27078]
[1742162346715,0.00535581,82913.0,82911.0,0.192978]
[1742162347451,0.02426016,82913.0,82912.0,0.192975]
[1742162347647,0.02626016,82913.0,82912.0,0.192975]
[1742162348288,0.02626016,82913.0,82912.0,0.250935]
[1742162348486,0.00735581,82913.0,82912.0,0.250935]
[1742162348701,0.00635581,82913.0,82912.0,0.250935]
[1742162349035,0.00835581,82913.0,82912.0,0.250935]
[1742162349287,0.00735581,82913.0,82912.0,0.329735]
[1742162349448,0.00635581,82913.0,82912.0,0.329735]
[1742162349664,0.001,82913.0,82912.0,1.829735]
[1742162349872,0.002,82913.0,82912.0,1.829735]
[1742162352267,0.002,82913.0,82912.0,0.329735]
[1742162359482,0.001,82913.0,82912.0,0.329735]
[1742162359699,0.0003382,82916.0,82915.0,0.282628]
[1742162359893,0.0003382,82916.0,82915.0,1.781628]
[1742162362775,0.0003382,82916.0,82915.0,1.782628]
[1742162368567,0.0003382,82916.0,82915.0,1.831728]
[1742162375856,0.0003382,82916.0,82915.0,1.8318971]
[1742162379983,2e-07,82916.0,82915.0,2.1318971]
[1742162380531,2e-07,82916.0,82915.0,2.26601298]
[1742162381654,2e-07,82916.0,82915.0,2.26501298]
[1742162381849,2e-07,82916.0,82915.0,2.26601298]
[1742162382726,2e-07,82916.0,82915.0,2.26801298]
[1742162382859,8e-07,82920.0,82919.0,0.630918]
[1742162383059,4e-07,82922.0,82921.0,0.505013]
[1742162383302,4e-07,82922.0,82921.0,0.62458803]
[1742162383620,4e-07,82922.0,82921.0,0.70118803]
[1742162383940,4e-07,82922.0,82921.0,2.20118803]
[1742162384085,4e-07,82922.0,82921.0,2.21572888]
[1742162385750,4e-07,82922.0,82921.0,2.21772888]
[1742162386055,4e-07,82922.0,82921.0,2.21872888]
[1742162386243,4e-07,82922.0,82921.0,2.22172888]
[1742162386553,4e-07,82922.0,82921.0,2.21872888]
[1742162386948,4e-07,82922.0,82921.0,2.22272888]
[1742162389461,4e-07,82922.0,82921.0,2.24683451]
[1742162395076,4e-07,82922.0,82921.0,2.38199451]
[1742162398627,4e-07,82922.0,82921.0,2.38233271]
[1742162400411,4e-07,82922.0,82921.0,2.03645683]
[1742162400621,0.0827004,82922.0,82921.0,1.7123512]
[1742162400822,0.0827004,82922.0,82921.0,1.5073382]
[1742162401025,0.3361114,82922.0,82921.0,0.0073382]
[1742162401451,0.1311004,82922.0,82921.0,0.0073382]
[1742162401652,0.1311004,82922.0,82921.0,0.0003382]
[1742162401888,0.3376189,82922.0,82921.0,0.0003382]
[1742162402089,0.3361114,82922.0,82921.0,0.0033382]
[1742162402303,0.64833709,82922.0,82921.0,0.0023382]
[1742162402657,0.64833709,82922.0,82921.0,0.0033382]
[1742162402871,0.64833709,82922.0,82921.0,0.0013382]
[1742162403027,0.64833709,82922.0,82921.0,0.0033382]
[1742162403239,0.64833709,82922.0,82915.0,0.0001691]
[1742162403240,0.633126,82916.0,82915.0,0.0001691]
[1742162403443,0.768286,82916.0,82915.0,0.0001691]
[1742162403642,0.4281,82916.0,82915.0,0.0001691]
[1742162403843,0.1281,82916.0,82915.0,0.2051971]
[1742162404695,0.1281,82916.0,82915.0,0.1931371]
[1742162405292,0.1281,82916.0,82915.0,0.1941371]
[1742162405697,0.321066,82916.0,82915.0,0.0031691]
[1742162406055,0.333126,82916.0,82915.0,0.0031691]
[1742162406258,0.333126,82916.0,82915.0,1.5031691]
[1742162406638,0.333126,82916.0,82915.0,0.0031691]
[1742162407399,0.333126,82916.0,82915.0,0.0021691]
[1742162407600,0.505039,82911.0,82902.0,0.00029326]
[1742162407930,0.633339,82911.0,82902.0,0.00029326]
[1742162408134,0.768539,82911.0,82902.0,0.00029326]
[1742162409520,0.770539,82911.0,82902.0,0.00029326]
[1742162409724,0.773539,82911.0,82902.0,0.00029326]
[1742162410067,0.79307985,82911.0,82902.0,0.00029326]
[1742162410269,0.81198614,82911.0,82902.0,0.00029326]
[1742162410475,0.67678614,82911.0,82902.0,0.00029326]
[1742162410699,0.79107985,82911.0,82902.0,0.00029326]
[1742162410905,0.78807985,82911.0,82902.0,0.00029326]
[1742162411105,0.79107985,82911.0,82902.0,0.00029326]
[1742162411281,0.79407985,82911.0,82902.0,0.00029326]
[1742162411481,0.78807985,82911.0,82902.0,0.00029326]
[1742162411784,0.79707985,82911.0,82902.0,0.00029326]
[1742162411979,0.66187985,82911.0,82902.0,0.00029326]
[1742162412627,0.79707985,82911.0,82902.0,0.00029326]
[1742162412827,0.66187985,82911.0,82902.0,0.00029326]
[1742162413025,0.65687985,82911.0,82902.0,0.00029326]
[1742162413233,0.777539,82911.0,82902.0,0.00029326]
[1742162413762,0.79644539,82911.0,82902.0,0.00029326]
[1742162414167,0.66124539,82911.0,82902.0,0.00029326]
[1742162416473,0.66124539,82911.0,82902.0,0.19329126]
[1742162416949,0.02390639,82911.0,82910.0,0.1931492]
[1742162417151,0.02390639,82911.0,82910.0,0.0001692]
[1742162417152,0.192978,82911.0,82910.0,0.0001692]
[1742162417297,0.209039,82911.0,82910.0,0.0001692]
[1742162417512,0.21054684,82911.0,82910.0,0.0001692]
[1742162417910,0.20654684,82911.0,82910.0,0.0001692]
[1742162418226,0.21054684,82911.0,82910.0,0.0001692]
[1742162418430,0.21591999,82911.0,82910.0,0.0001692]
[1742162418636,0.21241215,82911.0,82910.0,0.0001692]
[1742162418837,0.21591999,82911.0,82910.0,0.0001692]
[1742162419047,0.21441215,82911.0,82910.0,0.0001692]
[1742162419857,0.21592,82911.0,82910.0,0.0001692]
[1742162420544,0.23482469,82911.0,82910.0,0.0001692]
[1742162420735,0.23331684,82911.0,82910.0,0.0001692]
[1742162421023,0.23482468,82911.0,82910.0,0.0001692]
[1742162421223,0.23331684,82911.0,82910.0,0.0001692]
[1742162421526,0.21441215,82911.0,82910.0,0.0001692]
[1742162422111,0.21241215,82911.0,82910.0,0.0001692]
[1742162422436,0.29291215,82911.0,82910.0,0.0001692]
[1742162422824,0.21241215,82911.0,82910.0,0.0001692]
[1742162424139,0.00737315,82911.0,82910.0,0.0001692]
[1742162424341,0.00837315,82911.0,82910.0,0.0001692]
[1742162424543,0.21725526,82911.0,82910.0,0.0001692]
[1742162424990,0.21825526,82911.0,82910.0,0.0001692]
[1742162425185,0.02427726,82911.0,82910.0,0.2052102]
[1742162425588,0.01990411,82911.0,82910.0,0.2052102]
[1742162426437,0.001,82911.0,82910.0,0.2052102]
[1742162427413,0.0001692,82915.0,82914.0,0.205031]
[1742162427621,0.0001692,82915.0,82914.0,1.705031]
[1742162428863,0.0001692,82915.0,82914.0,1.706031]
[1742162429893,0.0001692,82915.0,82914.0,1.827031]
[1742162430099,2e-07,82915.0,82914.0,1.827031]
[1742162430445,2e-07,82915.0,82914.0,2.127031]
[1742162430646,2e-07,82915.0,82914.0,2.126031]
[1742162431050,2e-07,82915.0,82914.0,2.127031]
[1742162431282,2e-07,82915.0,82914.0,2.126031]
[1742162431506,2e-07,82915.0,82914.0,2.127031]
[1742162431735,0.0010002,82915.0,82914.0,2.127031]
[1742162431922,0.0020002,82915.0,82914.0,2.127031]
[1742162432150,2e-07,82925.0,82924.0,0.205006]
[1742162432299,2e-07,82925.0,82924.0,0.59792188]
[1742162432500,2e-07,82925.0,82924.0,0.89792188]
[1742162432908,2e-07,82925.0,82924.0,0.90292188]
[1742162433109,2e-07,82925.0,82924.0,0.95292188]
[1742162433323,0.0003384,82956.0,82955.0,0.204929]
[1742162433482,0.0003384,82956.0,82955.0,0.280829]
[1742162434394,0.0003384,82956.0,82955.0,0.279829]
[1742162434592,0.00075147,82956.0,82955.0,0.279829]
[1742162434838,4.7e-07,82956.0,82955.0,0.71158253]
[1742162435010,4.7e-07,82956.0,82955.0,0.72612338]
[1742162435211,4.7e-07,82956.0,82955.0,0.72712338]
[1742162435676,0.00016967,82956.0,82955.0,0.72712338]
[1742162435882,6.7e-07,82956.0,82955.0,0.73212338]
[1742162436081,6.7e-07,82956.0,82955.0,0.78212338]
[1742162436233,6.7e-07,82956.0,82955.0,2.28212338]
[1742162436395,6.7e-07,82956.0,82955.0,2.2910695]
[1742162436839,6.7e-07,82956.0,82955.0,2.2900695]
[1742162437493,6.7e-07,82956.0,82955.0,2.2920695]
[1742162437693,6.7e-07,82956.0,82955.0,2.2950695]
[1742162438039,6.7e-07,82956.0,82955.0,2.2900695]
[1742162438402,6.7e-07,82956.0,82955.0,2.3020695]
[1742162438847,6.7e-07,82956.0,82955.0,2.2960695]
[1742162439083,6.7e-07,82956.0,82955.0,2.35560086]
[1742162439696,6.7e-07,82956.0,82955.0,2.34960086]
[1742162439866,6.7e-07,82956.0,82955.0,2.35560086]
[1742162440073,6.7e-07,82956.0,82955.0,2.36060086]
[1742162440279,0.0008,82989.0,82955.0,2.31354729]
[1742162440486,0.0003934,82980.0,82979.0,0.20487]
[1742162440630,0.0003934,82980.0,82979.0,0.45976984]
[1742162440827,0.0003934,82980.0,82979.0,0.47310588]
[1742162441105,0.0003934,82980.0,82979.0,0.77310588]
[1742162441285,0.0003934,82980.0,82979.0,0.7976953]
[1742162441645,0.0003934,82980.0,82979.0,2.2976953]
[1742162441849,0.0003934,82980.0,82979.0,2.3006953]
[1742162443241,0.0003934,82980.0,82979.0,2.3056953]
[1742162443603,0.0003934,82980.0,82979.0,2.34664504]
[1742162443789,0.0003934,82980.0,82979.0,2.31464547]
[1742162444810,0.0003934,82980.0,82979.0,2.34441059]
[1742162446069,4e-07,82980.0,82979.0,2.34441059]
[1742162447107,4e-07,82980.0,82979.0,2.34437059]
[1742162447505,5e-07,82980.0,82979.0,2.34437059]
[1742162449088,5e-07,82980.0,82979.0,2.17952547]
[1742162449286,5e-07,82980.0,82979.0,2.31468547]
[1742162449462,5e-07,82980.0,82979.0,2.31168547]
[1742162449823,5e-07,82980.0,82979.0,2.31068547]
[1742162450182,5e-07,82980.0,82979.0,2.31668547]
[1742162450801,5e-07,82980.0,82979.0,2.31068547]
[1742162451049,0.01888213,83006.0,83004.0,0.012047]
[1742162451332,0.01888213,83006.0,83005.0,0.192757]
[1742162451714,0.01888213,83006.0,83002.0,0.192766]
[1742162451910,0.204796,83010.0,83005.0,0.192759]
[1742162452074,0.012046,83011.0,83005.0,0.192758]
[1742162452075,0.192745,83011.0,83005.0,0.192758]
[1742162452848,0.00012392,83012.0,83011.0,0.204791]
[1742162453669,0.001,83006.0,83005.0,0.204804]
[1742162454149,0.001,83006.0,83005.0,0.192759]
[1742162454314,0.001,83006.0,83004.0,0.192757]
[1742162454524,0.001,83006.0,83002.0,1.692765]
[1742162454740,0.001,83006.0,83003.0,0.012047]
[1742162454943,0.001,83006.0,83005.0,0.002]
[1742162455139,0.192749,83010.0,83005.0,0.194759]
[1742162455349,0.204795,83011.0,83006.0,0.192756]
[1742162455553,0.192749,83011.0,83006.0,0.192756]
[1742162455685,0.20491292,83012.0,83006.0,0.204802]
[1742162455892,0.192746,83011.0,83007.0,0.192752]
[1742162456375,0.01888116,83011.0,83007.0,0.192752]
[1742162456558,0.19286692,83012.0,83007.0,0.192752]
[1742162456731,0.192748,83010.0,83005.0,0.192757]
[1742162457449,0.192748,83010.0,83007.0,0.001]
[1742162457796,0.192747,83011.0,83007.0,0.001]
[1742162457905,0.192746,83011.0,83006.0,0.204803]
[1742162458114,0.192746,83011.0,83007.0,0.192753]
[1742162458310,0.01216992,83012.0,83007.0,0.192753]
[1742162458552,0.192745,83011.0,83006.0,0.204803]
[1742162458761,0.19286692,83012.0,83007.0,0.192754]
[1742162459002,0.00012392,83012.0,83007.0,0.192753]
[1742162459122,0.00559259,83011.0,83007.0,0.192753]
[1742162459531,0.00559259,83011.0,83008.0,0.19275]
[1742162459734,0.19833859,83011.0,83007.0,0.192753]
[1742162459961,0.19833859,83011.0,83006.0,0.204803]
[1742162459962,0.000169,83010.0,83004.0,0.012047]
[1742162460162,0.000169,83010.0,83004.0,1.692761]
[1742162460370,0.204806,83005.0,83004.0,1.5]
[1742162460569,0.000169,83010.0,82980.0,0.385632]
[1742162460570,0.000169,83010.0,83003.0,0.012047]
[1742162460767,0.000169,83010.0,83001.0,0.012048]
[1742162460768,0.01765054,83005.0,82997.0,0.012048]
[1742162460971,0.012047,83004.0,82998.0,0.192771]
[1742162461260,0.192764,83003.0,82999.0,0.192771]
[1742162461497,0.00560354,83003.0,82999.0,0.204819]
[1742162461721,0.00560354,83003.0,83002.0,0.192766]
[1742162461932,0.192752,83009.0,83005.0,0.192759]
[1742162462129,0.192753,83008.0,82999.0,0.012048]
[1742162462331,0.192766,83002.0,82998.0,0.192771]
[1742162462493,0.192766,83002.0,82999.0,0.192771]
[1742162462729,0.192756,83007.0,83003.0,0.192764]
[1742162462930,0.192756,83007.0,83004.0,0.19276]
[1742162463707,0.192761,83004.0,82999.0,0.001]
[1742162463870,0.192767,83002.0,82999.0,0.192771]
[1742162464237,0.012048,83001.0,82996.0,0.192778]
[1742162464451,0.192772,83000.0,82997.0,0.192777]
[1742162464654,0.192776,82998.0,82994.0,0.204833]
[1742162464863,0.192776,82998.0,82996.0,0.192778]
[1742162465067,0.192752,83008.0,82997.0,0.012048]
[1742162465265,0.192752,83008.0,82991.0,0.012049]
[1742162465266,0.19278,82997.0,82994.0,0.192784]
[1742162465690,0.01888304,82998.0,82995.0,0.012048]
[1742162465895,0.01888304,82998.0,82996.0,0.19278]
[1742162466103,0.01888304,82998.0,82995.0,0.192782]
[1742162466432,0.192778,82997.0,82996.0,0.002]
[1742162466839,0.012048,82996.0,82985.0,0.01205]
[1742162467048,0.01205,82986.0,82979.0,0.012389]
[1742162467239,0.192805,82985.0,82979.0,0.000338]
[1742162467405,0.192794,82990.0,82985.0,0.192803]
[1742162467618,0.012049,82990.0,82982.0,0.192812]
[1742162467817,0.012049,82990.0,82984.0,0.192806]
[1742162467818,0.192801,82987.0,82984.0,0.192806]
[1742162468025,0.204844,82990.0,82985.0,0.002]
[1742162468231,0.204844,82990.0,82987.0,0.1928]
[1742162468439,0.192795,82990.0,82985.0,0.204855]
[1742162468895,0.192798,82989.0,82986.0,0.192803]
[1742162469688,0.0009867,82996.0,82986.0,0.01205]
[1742162469885,0.0009867,82996.0,82995.0,0.20483]
[1742162470289,0.582521,82999.0,82993.0,0.192785]
[1742162470487,0.01888515,82996.0,82993.0,0.192785]
[1742162471297,0.192776,82998.0,82995.0,0.192782]
[1742162471519,0.192779,82997.0,82994.0,0.204833]
[1742162471711,0.002,82996.0,82994.0,0.204833]
[1742162472269,0.002,82996.0,82995.0,0.012048]
[1742162472491,0.003,82996.0,82995.0,0.20483]
[1742162472895,0.570475,82999.0,82996.0,0.19278]
[1742162473301,0.002,82997.0,82996.0,0.19178]
[1742162473474,0.570475,82999.0,82996.0,0.19178]
[1742162473677,0.192776,82998.0,82996.0,0.19178]
[1742162473883,0.194781,82996.0,82992.0,0.204838]
[1742162474089,0.012049,82994.0,82984.0,0.01205]
[1742162474288,0.012049,82991.0,82984.0,0.01205]
[1742162474496,0.192791,82992.0,82987.0,0.192799]
[1742162474918,0.192792,82991.0,82987.0,0.192799]
[1742162475324,0.192789,82992.0,82989.0,0.192795]
[1742162475502,0.192794,82990.0,82988.0,0.192798]
[1742162475822,0.01888559,82991.0,82988.0,0.012049]
[1742162476157,0.01888559,82991.0,82989.0,0.192794]
[1742162477081,0.01888559,82991.0,82990.0,0.192794]
[1742162477286,0.01888559,82991.0,82990.0,0.204843]
[1742162477582,0.01988559,82991.0,82990.0,0.192794]
[1742162477827,0.01988559,82991.0,82989.0,0.204843]
[1742162478348,0.00556071,82990.0,82986.0,0.000338]
[1742162478487,0.19835671,82990.0,82988.0,0.192798]
[1742162479104,0.00556071,82990.0,82989.0,0.012049]
[1742162479327,0.00556071,82990.0,82989.0,0.204845]
[1742162479670,0.19835571,82990.0,82987.0,0.192801]
[1742162479873,0.19835571,82990.0,82988.0,0.192798]
[1742162480136,0.19835571,82990.0,82987.0,0.192801]
[1742162480343,0.19835571,82990.0,82988.0,0.192798]
[1742162480556,0.19835571,82990.0,82987.0,0.192801]
[1742162480933,0.192797,82989.0,82987.0,0.192801]
[1742162481137,0.19835736,82989.0,82987.0,0.192801]
[1742162481329,0.00556036,82989.0,82988.0,0.204847]
[1742162481559,0.01888559,82991.0,82990.0,0.204843]
[1742162482579,0.01888559,82991.0,82989.0,0.192794]
[1742162482788,0.192796,82989.0,82987.0,0.192794]
[1742162482958,0.192794,82990.0,82987.0,0.192794]
[1742162483159,0.192794,82990.0,82986.0,0.000338]
[1742162483362,0.192796,82989.0,82986.0,0.000338]
[1742162483849,0.192796,82989.0,82987.0,0.002]
[1742162484096,0.03093459,82991.0,82990.0,0.204843]
[1742162484097,0.01888559,82991.0,82990.0,0.204843]
[1742162485638,0.01888559,82991.0,82990.0,0.214843]
[1742162486244,0.01888559,82991.0,82990.0,1.714843]
[1742162486443,0.01888559,82991.0,82990.0,1.715843]
[1742162486763,0.01888559,82991.0,82990.0,1.714843]
[1742162487113,0.01888559,82991.0,82990.0,1.717843]
[1742162488316,0.01888559,82991.0,82990.0,1.714843]
[1742162488827,0.01888559,82991.0,82990.0,1.716843]
[1742162489230,0.01888559,82991.0,82990.0,1.718843]
[1742162489421,0.01888559,82991.0,82990.0,1.720843]
[1742162489606,0.01888559,82991.0,82990.0,0.220843]
[1742162490973,0.01888559,82991.0,82990.0,0.2220479]
[1742162491174,0.0009894,83003.0,83002.0,0.204813]
[1742162491396,0.000169,83010.0,83009.0,0.204796]
[1742162491572,0.00029292,83010.0,83009.0,0.204796]
[1742162492734,0.012046,83009.0,83005.0,0.192758]
[1742162492931,0.012048,82998.0,82991.0,0.012049]
[1742162493132,0.012047,83007.0,83001.0,0.192767]
[1742162493366,0.192757,83007.0,83003.0,0.204811]
[1742162493552,0.271651,83009.0,83004.0,0.19276]
[1742162493740,0.0789,83009.0,83006.0,0.012047]
[1742162493967,0.19275,83009.0,83005.0,0.001]
[1742162494159,0.19275,83009.0,83005.0,0.013047]
[1742162494357,0.192754,83008.0,83005.0,0.205805]
[1742162494535,0.192754,83008.0,83005.0,0.001]
[1742162494744,0.192754,83008.0,83005.0,0.193758]
[1742162494901,0.01888229,83009.0,83008.0,0.192752]
[1742162495301,0.01888229,83009.0,83008.0,0.204799]
[1742162495501,0.00029292,83010.0,83009.0,0.204796]
[1742162495755,0.00029292,83010.0,83009.0,0.203796]
[1742162496271,0.00029292,83010.0,83009.0,1.703796]
[1742162496878,0.00029292,83010.0,83009.0,1.702796]
[1742162497111,0.00029292,83010.0,83009.0,1.703796]
[1742162497319,0.00029292,83010.0,83009.0,0.203796]
[1742162498548,0.01917351,83010.0,83009.0,0.203796]
[1742162499006,0.00029292,83010.0,83009.0,0.203796]
[1742162500098,0.00029292,83010.0,83009.0,0.20500062]
[1742162500271,0.00029292,83010.0,83009.0,0.203796]
[1742162500703,0.00029292,83010.0,83009.0,1.703796]
[1742162500910,0.20508592,83010.0,83009.0,0.001]
[1742162501112,0.22448025,83010.0,83009.0,0.001]
[1742162501311,0.35980025,83010.0,83009.0,0.001]
[1742162501470,0.35980025,83010.0,82994.0,0.192784]
[1742162501471,0.192768,83001.0,82997.0,0.192777]
[1742162501901,0.0056083,83000.0,82999.0,0.192773]
[1742162502115,0.192759,83006.0,83002.0,0.192765]
[1742162502561,0.0056083,83005.0,83002.0,0.192765]
[1742162502995,0.0056083,83005.0,83000.0,0.204816]
[1742162502996,0.0056083,83005.0,83004.0,0.204808]
[1742162503307,0.00029292,83010.0,83009.0,0.204796]
[1742162506064,0.01917391,83010.0,83009.0,0.204796]